Cogmind - Beta 9.6 @@@ ROGUE MODE // 2020.07.10 @ 21:14:47 Player: Torako Result: Destroyed by DAS Turret with DAS Cannon Performance ------------- Evolutions (1) 500 Regions Visited (5) 1000 Robots Destroyed (22) 110 Value Destroyed (297) 297 Prototype IDs (22) 440 Alien Tech Used (0) 0 Bonus (195) 195 TOTAL SCORE: 2542 Bonus ------- Follower Combat Kills 21 Aligned with FarCom 300 Friendly Fire -126 Cogmind --------- Core Integrity 0/400 Matter 300/300 Energy 98/100 System Corruption 0% Temperature Cool (2) Movement Walking (90) Location -9/Exiles Parts ------- > --- POWER (1) -------- (None) > --- PROPULSION (2) --- Potential Leg Potential Leg > --- UTILITY (3) ------ Small Storage Unit > --- WEAPON (3) ------- Mace > --- INVENTORY (6) ---- EM Pulse Gun Assault Rifle Mini Grenade Launcher Peak State ------------ > --- POWER ------------ (None) > --- PROPULSION ------- Potential Leg Potential Leg > --- UTILITY ---------- Small Storage Unit Hardened Medium Armor Plating > --- WEAPON ----------- Mace Mace Mace > --- INVENTORY -------- EM Pulse Gun Assault Rifle Mini Grenade Launcher [Rating: 30] Favorites ----------- Power Improved Ion Engine Engine Improved Ion Engine Propulsion Aluminum Leg Leg Aluminum Leg Utility Hardened Medium Armor Plating Storage Small Storage Unit Processor Targeting Computer Protection Hardened Medium Armor Plating Weapon Mace Ballistic Gun Light Assault Rifle Launcher Mini Grenade Launcher Impact Weapon Mace Build | -11 -10 -10 -9 -9 -9 ------- Run | Scr Mat Min Mat Min Exi Slots Evolved 2 | . . . 2 . . Power . | . . . . . . Propulsion . | . . . . . . Utility 1 | . . . 1 . . Weapon 1 | . . . 1 . . Parts Attached 16 | . 1 . 10 . 5 Power 1 | . . . 1 . . Engine 1 | . . . 1 . . Core . | . . . . . . Reactor . | . . . . . . Propulsion 3 | . . . 1 . 2 Treads . | . . . . . . Leg 3 | . . . 1 . 2 Wheel . | . . . . . . Hover . | . . . . . . Flight . | . . . . . . Utility 6 | . 1 . 4 . 1 Device . | . . . . . . Storage . | . . . . . . Processor 1 | . 1 . . . . Hackware . | . . . . . . Protection 5 | . . . 4 . 1 Artifact . | . . . . . . Weapon 6 | . . . 4 . 2 Energy Gun . | . . . . . . Energy Cannon . | . . . . . . Ballistic Gun 1 | . . . 1 . . Ballistic Cannon . | . . . . . . Launcher 1 | . . . . . 1 Special Weapon . | . . . . . . Impact Weapon 4 | . . . 3 . 1 Slashing Weapon . | . . . . . . Piercing Weapon . | . . . . . . Special Melee Weapon . | . . . . . . Unidentified Prototypes . | . . . . . . Parts Lost 8 | . . . . . 8 Power 1 | . . . . . 1 Propulsion 2 | . . . . . 2 Utility 3 | . . . . . 3 Weapon 2 | . . . . . 2 Highest Loss Streak 4 | . . . . . 4 Average Slot Usage (%) 94 | . 99 100 97 100 86 Engine 9 | . 14 14 11 11 5 Leg 22 | . 28 28 22 22 21 Storage 11 | . 14 14 11 11 11 Processor 3 | . 13 14 9 . . Protection 14 | . . . 9 22 15 Ballistic Gun 9 | . 28 28 31 . . Impact Weapon 22 | . . . 1 33 32 Naked Turns . | . . . . . . Heaviest Build 33 | 12 12 12 33 33 33 Greatest Support 60 | 20 20 20 20 20 60 Greatest Overweight (x) 1 | . . . 1 1 1 Average Overweight (x) . | . . . . 1 . Largest Inventory Capacity 6 | . 6 6 6 6 6 Average Capacity 6 | . 6 6 6 6 6 Most Carried 6 | . 6 6 6 6 6 Average Carried 5 | . 5 6 5 6 4 Final Capacity 6 | 6 6 6 6 6 6 Final Carried 6 | 6 6 6 6 6 3 Class Distribution -------------------- 83% | Mutant 16% | Gunner Dominant Class ---------------- Mutant | -10/Materials Mutant | -10/Mines Gunner | -9/Materials Mutant | -9/Mines Mutant | -9/Exiles Resources | -11 -10 -10 -9 -9 -9 ----------- Run | Scr Mat Min Mat Min Exi Matter Collected 553 | 200 26 . 212 70 45 Remotely . | . . . . . . Salvage Created 494 | . 48 . 335 18 93 Parts 27 | . 5 . 22 . . Haulers Intercepted . | . . . . . . Recyclers Shooed . | . . . . . . Parts Field Recycled . | . . . . . . Retrieved Matter . | . . . . . . Parts Self-Destructed . | . . . . . . Prevented . | . . . . . . Kills | -11 -10 -10 -9 -9 -9 ------- Run | Scr Mat Min Mat Min Exi Combat Hostiles Destroyed 22 | . 3 . 10 1 8 Melee 2 | . . . . 1 1 Guns 13 | . 3 . 10 . . AOE 7 | . . . . . 7 Classes Destroyed 4 | . 1 . 2 1 . Swarmer 7 | . 3 . 4 . . Grunt 4 | . . . 4 . . Sentry 2 | . . . 2 . . Assembled 8 | . . . . 1 7 Best Kill Streak 7 | . 3 . 4 1 7 Combat Bots Only 7 | . 3 . 4 1 7 Max Kills in Single Turn 4 | . 1 . 1 1 4 Gunslinging . | . . . . . . Exploded 4 | . . . . . 4 Melee 1 | . . . . 1 1 Uniques/NPCs Destroyed 1 | . . . . . 1 8R-AWN (-9/Exiles) Combat | -11 -10 -10 -9 -9 -9 -------- Run | Scr Mat Min Mat Min Exi Damage Taken 2518 | . 50 . 408 74 1986 Core 471 | . 19 . 49 21 382 Absorbed by Shields . | . . . . . . Core Remaining (%) 96 | 100 . 92 . . . Volleys Fired 44 | . 7 . 34 . 3 Largest 3 | . 2 . 3 . 1 Hottest 60 | . 40 . 60 . 30 Shots Fired 119 | . 14 . 102 . 3 Gun 116 | . 14 . 102 . . Cannon . | . . . . . . Launcher 3 | . . . . . 3 Special . | . . . . . . Kinetic 116 | . 14 . 102 . . Thermal . | . . . . . . Explosive 3 | . . . . . 3 Electromagnetic . | . . . . . . Robot Hit Streak 30 | . 4 . 30 . 2 Robot Miss Streak 4 | . 2 . 4 . 1 Penetration Max . | . . . . . . Secondary Targets . | . . . . . . Shots Hit Robots 176 | . 8 . 67 4 97 Core Hits 43 | . 4 . 18 1 20 Critical Hits . | . . . . . . Critical Kills . | . . . . . . Critical Parts Destroyed . | . . . . . . Melee Attacks 151 | . . . . 28 123 Impact 151 | . . . . 28 123 Slashing . | . . . . . . Piercing . | . . . . . . Sneak Attacks 1 | . . . . . 1 Combat Hostiles . | . . . . . . Follow-up Attacks 34 | . . . . 3 31 Damage Inflicted 3382 | . 63 . 575 98 2646 Guns 638 | . 63 . 575 . . Cannons . | . . . . . . Explosions 525 | . . . . . 525 Melee 2219 | . . . . 98 2121 Ramming . | . . . . . . Kinetic 638 | . 63 . 575 . . Thermal . | . . . . . . Explosive 525 | . . . . . 525 Electromagnetic . | . . . . . . Impact 2219 | . . . . 98 2121 Slashing . | . . . . . . Piercing . | . . . . . . Highest Corruption . | . . . . . . Average Corruption . | . . . . . . Corruption Purged . | . . . . . . Overload Shots . | . . . . . . Overflow Damage 100 | . . . . 1 99 Projectiles . | . . . . . . Explosions . | . . . . . . Melee 100 | . . . . 1 99 Knockbacks 7 | . . . . . 7 Impact 7 | . . . . . 7 Kinetic . | . . . . . . Secondary . | . . . . . . Self-Inflicted Damage 102 | . . . . . 102 Shots 3 | . . . . . 3 Rammed . | . . . . . . Targets Rammed . | . . . . . . Kicked . | . . . . . . Crushed . | . . . . . . Highest Temperature 100 | . . . 100 . 17 Average Temperature 31 | . . . 33 . 11 Received Heat Transfer 151 | . . . 111 . 40 Siege Activations . | . . . . . . Robots Corrupted . | . . . . . . Combat Hostiles . | . . . . . . Parts Fried . | . . . . . . Impact Corruptions 10 | . . . . 1 9 Robots Melted . | . . . . . . Combat Hostiles . | . . . . . . Parts Melted . | . . . . . . Heat Transferred . | . . . . . . Parts Sabotaged . | . . . . . . Parts Stolen . | . . . . . . Parts Stripped . | . . . . . . Power Chain Reactions . | . . . . . . Missiles Intercepted . | . . . . . . Alert | -11 -10 -10 -9 -9 -9 ------- Run | Scr Mat Min Mat Min Exi Peak Influence 277 | . 85 33 277 166 . Average Influence 120 | . 38 33 198 108 . Maximum Alert Level 1 | . . . 1 . . Low Security (%) 84 | . 100 100 46 100 . Level 1 15 | . . . 53 . . Level 2 . | . . . . . . Level 3 . | . . . . . . Level 4 . | . . . . . . Level 5 . | . . . . . . High Security . | . . . . . . Max Security . | . . . . . . Squads Dispatched 3 | . . . 3 . . Investigation 2 | . . . 2 . . Extermination . | . . . . . . Reinforcement 1 | . . . 1 . . Assault . | . . . . . . Garrison . | . . . . . . Intercept . | . . . . . . Construction Impeded . | . . . . . . Haulers Reinforced . | . . . . . . Stealth | -11 -10 -10 -9 -9 -9 --------- Run | Scr Mat Min Mat Min Exi Distress Signals 2 | . . . 2 . . Communications Jammed . | . . . . . . Distress Signals . | . . . . . . Times Spotted 30 | . 5 . 12 5 8 Peak Tracking Total 9 | . 3 . 4 3 9 Tactical Retreats 4 | . 1 . 2 . 1 Traps | -11 -10 -10 -9 -9 -9 ------- Run | Scr Mat Min Mat Min Exi Traps Triggered 1 | . . . 1 . . Indirectly . | . . . . . . Trap Hack Attempts . | . . . . . . Triggered . | . . . . . . Disarmed . | . . . . . . Reprogrammed . | . . . . . . Reused . | . . . . . . Traps Extracted . | . . . . . . Installed . | . . . . . . Triggered . | . . . . . . Machines | -11 -10 -10 -9 -9 -9 ---------- Run | Scr Mat Min Mat Min Exi Machines Disabled 3 | . . . . . 3 Max in Single Turn 1 | . . . . . 1 Machines Sabotaged . | . . . . . . Garrisons Compromised . | . . . . . . Overloaded Fab Kills . | . . . . . . Fab Network Shutdowns . | . . . . . . Hacking | -11 -10 -10 -9 -9 -9 --------- Run | Scr Mat Min Mat Min Exi Machines Accessed 4 | . 1 . 2 . 1 Terminals 3 | . 1 . 2 . . Fabricators . | . . . . . . Repair Stations . | . . . . . . Recycling Units . | . . . . . . Scanalyzers . | . . . . . . Garrison Access . | . . . . . . Total Hacks 12 | . 2 . 9 . 1 Successful 10 | . 2 . 7 . 1 Failed 2 | . . . 2 . . Catastrophic . | . . . . . . Database Lockouts . | . . . . . . Manual 12 | . 2 . 9 . 1 Terminals 11 | . 2 . 9 . . Fabricators . | . . . . . . Repair Stations . | . . . . . . Recycling Units . | . . . . . . Scanalyzers . | . . . . . . Garrison Access . | . . . . . . Terminal Hacks 4 | . . . 3 . 1 Branch Access Points 1 | . . . 1 . . Terminal Index 1 | . . . 1 . . Recall Investigation 1 | . . . 1 . . EX-Prototype ID Bank 1 | . . . . . 1 Fabricator Hacks . | . . . . . . Repair Station Hacks . | . . . . . . Recycling Unit Hacks . | . . . . . . Scanalyzer . | . . . . . . Garrison Access Hacks . | . . . . . . Unauthorized Hacks 6 | . 2 . 4 . . Terminals 6 | . 2 . 4 . . Track 3 | . 1 . 2 . . Botnet 3 | . 1 . 2 . . Fabricators . | . . . . . . Repair Stations . | . . . . . . Recycling Units . | . . . . . . Scanalyzers . | . . . . . . Garrison Access . | . . . . . . Data Cores Recovered . | . . . . . . Used . | . . . . . . Hacking Detections 3 | . 1 . 2 . . Full Trace Events 1 | . . . 1 . . Feedback Events . | . . . . . . Feedback Blocked . | . . . . . . Robot Schematics Acquired . | . . . . . . Robots Built . | . . . . . . Matter . | . . . . . . Time . | . . . . . . Total Robot Build Rating . | . . . . . . Part Schematics Acquired . | . . . . . . Parts Built . | . . . . . . Matter . | . . . . . . Time . | . . . . . . Total Part Build Rating . | . . . . . . Parts Repaired . | . . . . . . Time . | . . . . . . Parts Recycled . | . . . . . . Recycled Matter . | . . . . . . Retrieved Matter . | . . . . . . Retrieved Components . | . . . . . . Parts Scanalyzed . | . . . . . . Part Schematics Acquired . | . . . . . . Parts Damaged . | . . . . . . Bothacking | -11 -10 -10 -9 -9 -9 ------------ Run | Scr Mat Min Mat Min Exi Used RIF Installer . | . . . . . . Robots Hacked . | . . . . . . Non-combat . | . . . . . . Combat . | . . . . . . Robot Hacks Applied . | . . . . . . Relay Couplers Released . | . . . . . . Robots Rewired . | . . . . . . Allies Hacked . | . . . . . . Hacks Repelled . | . . . . . . Allies | -11 -10 -10 -9 -9 -9 -------- Run | Scr Mat Min Mat Min Exi Total Allies 4 | . . . . 4 . Largest Group 3 | . . . . 3 1 Highest-Rated Group 40 | . . . . 40 28 Highest-Rated Ally 31 | . . . . 31 28 Total Orders . | . . . . . . Ally Attacks 16 | . . . . 16 . Total Damage 120 | . . . . 120 . Kills 4 | . . . . 4 . Allies Corrupted . | . . . . . . Allies Melted . | . . . . . . Intel | -11 -10 -10 -9 -9 -9 ------- Run | Scr Mat Min Mat Min Exi Robot Analysis Total . | . . . . . . Derelict Logs Recovered 1 | . . . . 1 . Drone Launches . | . . . . . . Drone Recoveries . | . . . . . . Exploration | -11 -10 -10 -9 -9 -9 ------------- Run | Scr Mat Min Mat Min Exi Turns Passed 1708 | . 180 34 322 578 594 Spaces Moved 867 | 1 126 25 141 326 248 Core . | . . . . . . Treads . | . . . . . . Legs 867 | 1 126 25 141 326 248 Wheels . | . . . . . . Hover . | . . . . . . Flight . | . . . . . . Fastest Speed 90 | 120 120 120 120 150 90 Average Speed 138 | 120 120 120 130 150 139 Slowest Speed 150 | 120 120 120 150 150 150 Overloaded Moves . | . . . . . . Propulsion Burnouts . | . . . . . . Robots Hopped . | . . . . . . Cave-ins Triggered . | . . . . . . Exploration Rate (%) 27 | 2 29 8 15 58 50 Regions Visited 5 Branch Regions 3 Pre-discovered Areas 1 | . . . . 1 . Known Exits Taken 1 | . . . 1 . . Unknown Exits Taken 4 | 1 1 1 . 1 . Scrap Searched 1 | . . . . 1 . Spaces Dug 3 | . . . . 3 . Terrain Destroyed 21 | . . . . 3 18 Melee 3 | . . . . 3 . Projectile . | . . . . . . AOE 18 | . . . . . 18 Actions | -11 -10 -10 -9 -9 -9 --------- Run | Scr Mat Min Mat Min Exi Total 1122 | . 142 29 218 383 350 Wait 68 | . 7 5 18 38 . Move 862 | . 125 24 140 325 248 Hop . | . . . . . . Pick Up 8 | . 1 . 5 . 2 Fast Attach 7 | . 1 . 6 . . Attach 4 | . . . 1 . 3 Detach 1 | . . . 1 . . Swap 5 | . . . 3 . 2 Drop 13 | . 1 . 10 . 2 Fire 44 | . 7 . 34 . 3 Melee 110 | . . . . 20 90 Ram . | . . . . . . Kick . | . . . . . . Crush . | . . . . . . Escape Stasis . | . . . . . . Rewire . | . . . . . . Trap . | . . . . . . Miscellaneous . | . . . . . . Route ------- -11/Scrapyard -10/Materials -10/Mines -9/Materials (discovered 3 exits: *Min / *Sto x2) -9/Mines (discovered 2 exits: [*Mat] / *Exi) -9/Exiles History --------- Turn | Location | Event 1 | -11/Scrapyard | Discovered new exit (range 0) 1 | -11/Scrapyard | Entered Materials 167 | -10/Materials | Discovered new exit (range 9) 181 | -10/Materials | Entered Mines 207 | -10/Mines | Discovered new exit (range 6) 215 | -10/Mines | Entered Materials 215 | -9/Materials | Evolved 2 slots: Utility x1, Weapon x1 429 | -9/Materials | Identified exit to Mines 429 | -9/Materials | Identified exit to Storage 537 | -9/Materials | Entered Mines 549 | -9/Mines | Assisted by bots powering up and referring to "LRC-V3" 711 | -9/Mines | Discovered new exit (range 14) 808 | -9/Mines | Build established: Mutant 910 | -9/Mines | Excavation squad dispatched 910 | -9/Mines | A large section of the Mines collapsed 984 | -9/Mines | Learned location of Zion (-7) 996 | -9/Mines | Received a Mining Laser from a helpful Derelict 1105 | -9/Mines | Deemed a non-threat by the Exiles lab entrance 1105 | -9/Mines | Discovered new exit (range 5) 1115 | -9/Mines | Entered Exiles 1115 | -9/Exiles | Accompanied by 1 ally 1151 | -9/Exiles | Met 8R-AWN 1177 | -9/Exiles | Met EX-HEX 1225 | -9/Exiles | Met EX-BIN 1241 | -9/Exiles | Aligned with FarCom system 1243 | -9/Exiles | Given EX-Vault access code 1279 | -9/Exiles | Opened EX-Vault 1294 | -9/Exiles | Found Potential Leg 1296 | -9/Exiles | Found Potential Leg 1330 | -9/Exiles | Warned to stay clear of 0b10 Research branches 1409 | -9/Exiles | Attacked by the Exiles 1441 | -9/Exiles | Core integrity fell below 50% 1447 | -9/Exiles | Destroyed 7 combat bots 1515 | -9/Exiles | Lost 4 parts (2n2u) 1592 | -9/Exiles | Core integrity fell below 20% 1671 | -9/Exiles | Destroyed 8R-AWN 1709 | -9/Exiles | Destroyed by DAS Turret with DAS Cannon Last Messages --------------- Destroyed Prototype Ballistic Gun. 8R-AWN system corrupted by crushing effect. HV Slug penetrates Wall. Penetrated by HV Slug. Destroyed Prototype Device. 8R-AWN system corrupted by crushing effect. Penetrated by HV Slug. Mace destroyed. Penetrated by HV Slug. HV Slug penetrates Wall. Destroyed Prototype Leg. 8R-AWN system corrupted by crushing effect. Penetrated by HV Slug. HV Slug penetrates Wall. Penetrated by HV Slug. Mace follow-up attack on 8R-AWN. 8R-AWN destroyed. Acquired 45 matter. Mace destroyed. Knocked back. Map ----- +----------------------------------------------------+ | ????????????????????????????????"""""?# #???## | | ???????????????????????????????"""" ## #????? | | ??????????????????????????????#""X" #????? | | ??????????????????????????????#" #????? | | ??????????????????????????????#" ## #????? | | ??????????????????????????????#""""""?# #?#### | | ???????????????????????????????#"###??# #?#""" | | ??????????????????????????????????????# #?#""" | | ??????????????????????????????????????# #?#""" | | ?????????????????????????????????????## ###"" | | ?????????????????????????????????????#" | | ?????????????????????????????????????#" | | ?????????????????????????????????????#" | | ?????????????????????????????????????#" | | ????????????????????????#####????????#" | | ???????????????????????? """#???????#" | | ???????????????????????"" """#???????## | | ??????????????????????#"" ?????????# | | ??????????????????????#"" ?????????#" "X" | | ??????????????????????#"" "?????????#" """ | | ??????????????????????? "??????????#" """"" | | ????????????????????????" "?????????##" ###### | | ????????????????????????# #????????##"" #????? | | ??????????????????????#?# ###?######"" #????? | | ?????????????? """#####X# #"###""""""" ##???? | | ?????????? @ """""" " "" ##??? | | ?????????? "" """ " #### | | ?????????? " " | | ???????????# | | ???????????### | | ?????????????## | | ??????????????## | | ???????????????##" | | ????????????????#""" """""" | | ????????????????#" ######""" | | ?????????????????" ""##????#####""" | | ?????????????????"" """##?????????##""" | | ?????????????????" """##???????????#"""" | | ?????????????????" ""#????????????#"" | | ?????????????????? ?????????????#"""" | | ???????????????????? ???????????""" | | ?????????????????????? ???????????"" | | ????????????????????????? ??????????? | | ??????????????????????????? ??????????? | | ???????????????????????????????????????? | | ???????????????????????????????????????? "" | | ???????????????????????????????????????? ##""" " | | ????????????????????????????????????????????####"" | | ???????????????????????????????????????????????### | | ?????????????????????????????????????????????????# | +----------------------------------------------------+ Best States ------------- Heat Dissipation 28 Energy Generation 12 Energy Capacity 265 Matter Stores 300 Matter Capacity 300 Sight Range 16 Terrain Scan Density 10 Armor Coverage 450 Evasion (%) 42 Targeting Accuracy 5 Item Schematics ----------------- None Robot Schematics ------------------ None Fabricated ------------ Nothing Alien Tech Used ----------------- None Achievements -------------- None Challenges ------------ None Game ------ Seed CompositeStormPick Manual? 0 Play Time 00:13:32 Cumulative 176.6 hours Start 2020.07.10 @ 20:59:36 End 2020.07.10 @ 21:14:47 Sessions 1 Manual Loads 0 Difficulty Rogue Special Mode None Game No. 203 Rogue 203 Adventurer 0 Explorer 0 Win Type - Total 7 Types 5/0/2/0/0/0/0 Lore% 72 Gallery% 82 Achievement% 59 Wizard Run 0 Options --------- ASCII 0 Keyboard 1 Movement Numpad Keybinds 0 Fullscreen 1 Font 20/SmallcapsGlow Map View 66x50 Tactical HUD 1 Map Filters NONE Filters NONE Steam 1 RUN: b4699757-9ba9-4e52-853e-721dc0905985